bitfinex-derivatives/quotes_ETHF0:USTF0_20250410
["timestamp","ask_amount","ask_price","bid_price","bid_amount"]
[1744319559590,7.94397,1530.2,1530.1,12.41736754]
[1744319560196,2.94397,1530.2,1530.1,12.41736754]
[1744319560494,1.30786,1530.1,1530.0,0.00653894]
[1744319560696,2.94406,1530.1,1530.0,0.00653894]
[1744319560885,6.15186,1530.1,1530.0,0.00653894]
[1744319564687,1.30786,1530.1,1530.0,0.00653894]
[1744319565401,4.51566,1530.1,1530.0,0.00653894]
[1744319565606,9.51566,1530.1,1530.0,8.94e-06]
[1744319567300,3.27015,1529.9,1529.4,0.8021]
[1744319567499,4.51617,1529.5,1529.4,0.8021]
[1744319568202,0.8404,1529.8,1529.4,7.11053]
[1744319568402,0.00980841,1529.6,1529.4,0.8021]
[1744319568604,1.31811841,1529.6,1529.5,1.6599]
[1744319568805,0.00980841,1529.6,1529.5,1.6599]
[1744319569007,1.31808841,1529.6,1529.5,1.6599]
[1744319570198,1.31808841,1529.6,1529.5,2.96827]
[1744319570507,1.31808841,1529.6,1529.5,1.6599]
[1744319571899,3.01938841,1529.6,1529.5,1.6599]
[1744319572508,1.31808841,1529.6,1529.5,1.6599]
[1744319573909,1.30854,1529.3,1529.2,4.0279]
[1744319574113,1.30854,1529.3,1529.2,2.4635]
[1744319574808,3.2078,1529.5,1529.2,3.77208]
[1744319575013,1.30846,1529.4,1529.3,1.6434]
[1744319575715,2.90656,1529.4,1529.3,1.6434]
[1744319575919,1.30863,1529.2,1529.1,0.8036]
[1744319576909,1.30885,1529.0,1528.8,10.0619]
[1744319577115,3.27159,1529.2,1528.8,10.9257]
[1744319577319,1.30884,1529.0,1528.9,1.6062]
[1744319577918,8.07738,1529.3,1528.9,2.91508]
[1744319578118,4.51637,1529.3,1528.9,4.87841]
[1744319578417,3.21760841,1529.6,1529.0,8.08598]
[1744319578619,1.30856,1529.3,1529.1,7.61285]
[1744319578817,1.30856,1529.3,1529.2,3.3055]
[1744319579120,1.30856,1529.3,1529.2,2.4417]
[1744319579810,1.30856,1529.3,1529.2,1.6062]
[1744319580011,2.89116,1529.3,1529.2,1.6062]
[1744319580513,1.3088,1529.0,1528.9,1.6993]
[1744319581307,1.30888,1528.9,1528.8,13.8978]
[1744319581515,1.30888,1528.9,1528.8,7.9058]
[1744319581910,1.30888,1528.9,1528.8,1.6831]
[1744319582317,6.47992,1529.0,1528.5,0.8355]
[1744319582521,1.30897,1528.8,1528.7,1.6831]
[1744319585820,1.30914,1528.6,1528.5,1.7079]
[1744319586225,1.30914,1528.6,1528.5,3.01713]
[1744319586816,1.30914,1528.6,1528.5,1.7079]
[1744319587222,1.30914,1528.6,1528.5,3.2739]
[1744319587426,0.00980841,1528.7,1528.5,3.2739]
[1744319587731,1.31886841,1528.7,1528.6,1.566]
[1744319588530,1.31886841,1528.7,1528.6,2.87514]
[1744319589528,0.00980841,1528.7,1528.6,2.87514]
[1744319590524,1.31886841,1528.7,1528.6,2.87514]
[1744319591322,1.31886841,1528.7,1528.6,1.566]
[1744319591523,1.31886841,1528.7,1528.6,2.87514]
[1744319591524,0.00980841,1528.7,1528.6,2.87514]
[1744319591814,1.31886841,1528.7,1528.6,2.87514]
[1744319592331,1.31886841,1528.7,1528.6,1.566]
[1744319592531,1.31886841,1528.7,1528.6,2.87514]
[1744319593631,0.00980841,1528.7,1528.6,2.87514]
[1744319594535,0.00980841,1528.7,1528.6,7.87514]
[1744319595833,0.00980841,1528.7,1528.6,13.86714]
[1744319596830,3.2078,1529.4,1529.3,1.30854]
[1744319597028,3.2078,1529.4,1529.0,3.2719]
[1744319597029,1.30856,1529.3,1529.2,1.30856]
[1744319597337,3.2078,1529.4,1529.1,8.0125]
[1744319597632,1.30862,1529.3,1529.2,1.5721]
[1744319597933,1.30863,1529.2,1529.1,0.87880841]
[1744319598124,1.30863,1529.2,1529.1,0.00980841]
[1744319598328,9.51643,1529.2,1529.1,0.00980841]
[1744319598522,3.2078,1529.2,1529.1,1.31851841]
[1744319598723,1.30863,1529.2,1529.1,0.00980841]
[1744319599034,1.3086,1529.3,1529.1,0.00980841]
[1744319599234,1.3086,1529.3,1529.2,1.30863]
[1744319599429,1.31831841,1529.4,1529.3,1.30854]
[1744319599629,1.31831841,1529.4,1529.3,2.99264]
[1744319600133,1.31831841,1529.4,1529.3,1.6841]
[1744319603139,1.31831841,1529.4,1529.3,2.99264]
[1744319604040,1.31831841,1529.4,1529.3,1.6841]
[1744319605541,1.30863,1529.2,1529.1,0.00980841]
[1744319605732,1.30863,1529.2,1529.1,1.68950841]
[1744319606127,2.93433,1529.2,1529.1,1.68950841]
[1744319609130,5.33128,1529.3,1529.1,1.68950841]
[1744319609335,1.30863,1529.2,1529.1,2.99814841]
[1744319609536,1.30863,1529.2,1529.1,3.84924841]
[1744319610241,1.30863,1529.2,1529.1,3.84923841]
[1744319610437,5.33131,1529.3,1529.1,2.54060841]
[1744319610742,5.33131,1529.3,1529.2,1.7066]
[1744319611744,12.89045703,1529.3,1529.2,1.7066]
[1744319612644,1.30863,1529.2,1529.1,8.41e-06]
[1744319612847,3.74713,1529.2,1529.1,8.41e-06]
[1744319613046,8.74713,1529.2,1529.1,8.41e-06]
[1744319617253,20.6667669,1529.2,1529.1,8.41e-06]
[1744319618647,15.6667669,1529.2,1529.1,8.41e-06]
[1744319621757,18.8745669,1529.2,1529.1,8.41e-06]
[1744319621950,31.65654754,1529.2,1529.1,8.41e-06]
[1744319623150,31.65654754,1529.2,1529.1,1.72580841]
[1744319625153,31.65654754,1529.2,1529.1,8.41e-06]
[1744319625359,36.65654754,1529.2,1529.1,8.41e-06]
[1744319627987,1.30897,1528.8,1528.7,1.5666]
[1744319628160,4.51677,1528.8,1528.7,1.5666]
[1744319628849,6.54603,1528.6,1528.1,9.95036716]
[1744319629056,8.2078,1528.8,1528.1,10.75626716]
[1744319629057,1.30948,1528.2,1528.1,10.75626716]
[1744319629561,1.30948,1528.2,1528.1,15.75626716]
[1744319630154,1.30948,1528.2,1528.1,13.25946716]
[1744319632762,1.30948,1528.2,1528.1,3.3091]
[1744319634862,1.30948,1528.2,1528.1,2.5032]
[1744319635063,4.51728,1528.2,1528.1,2.5032]
[1744319635965,4.51728,1528.2,1528.1,1.6478]
[1744319636158,11.48157,1528.2,1527.8,0.8565]
[1744319636361,4.51754,1527.9,1527.8,2.5241]
[1744319636564,1.30974,1527.9,1527.8,2.5241]
[1744319640366,4.51754,1527.9,1527.8,2.5241]
[1744319652475,1.30991,1527.7,1527.6,0.7893]
[1744319652776,1.31,1527.6,1527.5,4.692]
[1744319652961,1.31,1527.6,1527.5,5.5271]
[1744319653773,1.31,1527.6,1527.5,8.0486]
[1744319654182,1.31,1527.6,1527.5,9.35868]
[1744319654877,1.31,1527.6,1527.5,8.0486]
[1744319658485,1.31,1527.6,1527.5,2.5215]
[1744319659786,1.31,1527.6,1527.5,3.83158]
[1744319660087,0.00980841,1527.7,1527.6,1.31]
[1744319660088,1.31976841,1527.7,1527.6,1.31]
[1744319660285,1.31976841,1527.7,1527.6,3.7569]
[1744319661089,1.31976841,1527.7,1527.6,2.4469]
[1744319663293,1.31976841,1527.7,1527.6,3.7569]
[1744319663979,1.31976841,1527.7,1527.6,2.4469]
[1744319664590,1.31976841,1527.7,1527.6,1.6106]
[1744319665987,1.31976841,1527.7,1527.6,2.9206]
[1744319667090,1.31976841,1527.7,1527.6,1.6106]
[1744319667992,1.31976841,1527.7,1527.6,2.9206]
[1744319669989,0.00980841,1527.7,1527.6,2.9206]
[1744319670194,0.00980841,1527.7,1527.6,15.8174]
[1744319672191,0.00980841,1527.7,1527.6,10.8174]
[1744319673087,0.00980841,1527.7,1527.6,16.8094]
[1744319674597,0.00980841,1527.7,1527.6,21.8094]
[1744319674890,5.10248722,1527.8,1527.7,1.30991]
[1744319675197,5.10248722,1527.8,1527.7,8.20461]
[1744319675400,5.10248722,1527.8,1527.7,13.20461]
[1744319676295,6.27043776,1528.1,1528.0,1.30965]
[1744319676499,6.27043776,1528.1,1528.0,15.19845]
[1744319676798,6.27043776,1528.1,1528.0,20.19845]
[1744319677503,7.70738549,1528.1,1528.0,20.19845]
[1744319678093,7.70738549,1528.1,1528.0,21.01205]
[1744319678399,6.27075549,1528.1,1528.0,21.01205]
[1744319678595,0.22349549,1528.1,1528.0,21.01205]
[1744319678799,8e-08,1528.2,1528.1,1.30957]
[1744319679098,8e-08,1528.2,1528.1,2.18977]
[1744319679299,8e-08,1528.2,1528.1,15.72505483]
[1744319679493,8e-08,1528.2,1528.1,17.31105483]
[1744319680596,0.00980841,1528.3,1528.1,17.31105483]
[1744319680799,8.41e-06,1528.3,1528.2,6.82828]
[1744319681402,8.41e-06,1528.3,1528.2,11.82828]
[1744319681997,8.41e-06,1528.3,1528.2,17.82028]
[1744319683400,8.41e-06,1528.3,1528.2,12.82028]
[1744319683700,8.41e-06,1528.3,1528.2,12.16588]
[1744319689712,8.41e-06,1528.3,1528.2,10.50928]
[1744319689999,8.41e-06,1528.3,1528.2,12.20958]
[1744319697912,1.67480841,1528.3,1528.2,12.20958]
[1744319698209,1.67480841,1528.3,1528.2,10.50928]
[1744319705718,1.67480841,1528.3,1528.2,13.00898]
[1744319706113,8.41e-06,1528.3,1528.2,13.00898]
[1744319708317,8.41e-06,1528.3,1528.2,18.00898]
[1744319708519,8.41e-06,1528.3,1528.2,26.46856176]
[1744319708814,0.9414,1528.7,1528.6,1.30914]
[1744319709017,1.6674,1528.9,1528.8,1.30897]
[1744319709217,1.6674,1528.9,1528.8,9.19877]
[1744319709620,12.78198064,1529.3,1528.9,1.30888]
[1744319709816,2.6088,1529.2,1529.1,1.30871]
[1744319710015,2.6088,1529.2,1529.1,5.98971]
[1744319710414,2.6088,1529.2,1529.1,7.59041]
[1744319710615,0.9414,1529.2,1529.1,7.59041]
[1744319710815,0.9414,1529.2,1529.1,8.54251]
[1744319711323,14.45918905,1529.3,1529.2,1.30863]
[1744319711524,14.45918905,1529.3,1529.2,6.14493]
[1744319711917,12.79178905,1529.3,1529.2,6.64748606]
[1744319712621,12.79178905,1529.3,1529.2,3.2078]
[1744319712822,19.42738905,1529.3,1528.9,9.20743841]
[1744319713023,5.78794,1529.2,1528.9,0.00980841]
[1744319713324,3.84565,1529.1,1528.9,4.52643841]
[1744319713525,1.6356,1529.0,1528.9,4.52643841]
[1744319713726,1.6356,1529.0,1528.9,9.20743841]
[1744319715528,1.6356,1529.0,1528.9,10.90823841]
[1744319716128,0.9013,1529.1,1529.0,1.3088]
[1744319716329,2.4813,1529.1,1529.0,3.0096]
[1744319716627,0.9013,1529.1,1529.0,3.0096]
[1744319717023,0.9013,1529.1,1529.0,9.0016]
[1744319718231,1.58,1529.2,1529.1,1.30871]
[1744319718530,0.00980841,1529.3,1529.2,1.30863]
[1744319718830,1.59100841,1529.3,1529.2,5.98863]
[1744319719229,1.59100841,1529.3,1529.2,7.60033]
[1744319721229,6.59100841,1529.3,1529.2,7.60033]
[1744319721531,1.30871,1529.1,1529.0,4.68]
[1744319721924,6.30871,1529.1,1529.0,4.68]
[1744319722123,7.89201,1529.1,1529.0,4.68]
[1744319724734,1.3088,1529.0,1528.9,1.31868841]
[1744319724943,3.9481,1529.0,1528.9,1.31868841]
[1744319726639,8.9481,1529.0,1528.9,0.00980841]
[1744319730847,1.30923,1528.5,1528.4,4.675]
[1744319731739,1.30931,1528.4,1528.3,3.2078]
[1744319731944,1.30931,1528.4,1528.3,4.68480841]
[1744319733949,1.30931,1528.4,1528.3,5.99420841]
[1744319734150,2.24091,1528.4,1528.3,5.99420841]
[1744319735942,2.24091,1528.4,1528.3,4.68480841]
[1744319739552,2.24091,1528.4,1528.3,5.99420841]
[1744319740051,2.24091,1528.4,1528.3,7.62890841]
[1744319743154,0.9316,1528.4,1528.3,7.62890841]
[1744319744062,2.24091,1528.4,1528.3,7.62890841]
[1744319745657,2.24091,1528.4,1528.3,6.31950841]
[1744319746054,2.24091,1528.4,1528.3,7.62890841]
[1744319747355,2.24091,1528.4,1528.3,1.64450841]
[1744319747573,2.24091,1528.4,1528.3,0.00980841]
[1744319750068,2.24091,1528.4,1528.3,1.31920841]
[1744319750365,2.24091,1528.4,1528.3,2.94770841]
[1744319750665,0.00980841,1528.5,1528.4,1.30931]
[1744319750862,1.31903841,1528.5,1528.4,2.22191]
[1744319751064,1.31903841,1528.5,1528.4,6.89891]
[1744319751264,1.31903841,1528.5,1528.4,8.46991]
[1744319755373,1.31903841,1528.5,1528.4,7.1606]
[1744319756263,2.88653841,1528.5,1528.4,7.1606]
[1744319756862,2.88653841,1528.5,1528.4,5.5896]
[1744319757064,2.88653841,1528.5,1528.4,4.677]
[1744319757362,2.88653841,1528.5,1528.3,0.00980841]
[1744319757363,1.30931,1528.4,1528.3,0.00980841]
[1744319757568,3.95011,1528.4,1528.3,0.00980841]
[1744319759569,3.95011,1528.4,1528.0,4.672]
[1744319759570,1.30957,1528.1,1528.0,4.672]
[1744319760674,2.17337,1528.1,1528.0,4.672]
[1744319761369,1.30946,1528.3,1528.2,1.30944]
[1744319761774,1.30946,1528.3,1528.2,2.10094]
[1744319762272,5.6635,1528.4,1528.2,0.7915]
[1744319762479,1.31907841,1528.5,1528.4,1.30931]
[1744319762773,0.00980841,1528.5,1528.4,1.30931]
[1744319762976,0.00980841,1528.5,1528.4,6.96331]
[1744319764477,0.00980841,1528.5,1528.4,3.75551]
[1744319764697,0.00980841,1528.5,1528.4,6.96331]
[1744319765591,1.31903841,1528.5,1528.4,4.8065]
[1744319765785,1.31903841,1528.5,1528.4,6.11581]
[1744319766492,0.00980841,1528.5,1528.4,6.11581]
[1744319766692,1.31903841,1528.5,1528.4,6.11581]
[1744319767001,0.00980841,1528.5,1528.4,6.11581]
[1744319768999,0.00980841,1528.5,1528.4,4.51711]
[1744319769204,1.3094,1528.3,1528.2,0.7915]
[1744319769413,3.27365,1528.3,1528.0,7.8798]
[1744319769708,1.30957,1528.1,1528.0,9.6092]
[1744319770612,1.30957,1528.1,1528.0,10.91885]
[1744319771143,1.30957,1528.1,1528.0,20.86921716]
[1744319771512,2.14687,1528.1,1528.0,9.95036716]
[1744319772011,3.74747,1528.1,1528.0,9.95036716]
[1744319773907,8.74747,1528.1,1528.0,9.95036716]
[1744319776009,13.42047,1528.1,1528.0,9.95036716]
[1744319777420,1.30965,1528.0,1527.9,0.00980841]
[1744319777551,6.99065,1528.0,1527.9,0.00980841]
[1744319779110,1.31008,1527.5,1527.4,4.51793]
[1744319779506,1.31008,1527.5,1527.4,6.19243]
[1744319780002,1.31008,1527.5,1527.4,4.8823]
[1744319781291,0.00980841,1527.6,1527.5,1.31008]
[1744319781591,1.31980841,1527.6,1527.5,8.45788]
[1744319784483,1.31980841,1527.6,1527.5,6.3545]
[1744319785879,1.31980841,1527.6,1527.5,7.66458]
[1744319786082,1.31980841,1527.6,1527.5,6.3545]
[1744319790488,1.31980841,1527.6,1527.4,4.5179]
[1744319790489,1.31008,1527.5,1527.4,3.2078]
[1744319790694,1.31017,1527.4,1527.3,7.19450841]
[1744319791094,1.31017,1527.4,1527.3,2.52550841]
[1744319791298,2.93727,1527.4,1527.3,0.80480841]
[1744319791693,6.14507,1527.4,1527.3,0.00980841]
[1744319791997,1.31034,1527.2,1527.1,0.8688]
[1744319792694,3.75924,1527.2,1527.1,0.8688]
[1744319793994,3.75924,1527.2,1527.1,2.6082]
[1744319798998,3.75924,1527.2,1527.1,0.8688]
[1744319799505,1.31068,1526.8,1526.7,13.15816716]
[1744319799699,7.8778,1526.8,1525.9,35.91318163]
[1744319799896,1.3112,1526.2,1525.9,35.91318163]
[1744319800403,3.0425,1526.2,1525.9,37.22459163]
[1744319800698,3.0425,1526.2,1525.9,35.91318163]
[1744319801304,3.42843106,1526.2,1525.9,35.91318163]
[1744319803000,3.0425,1526.2,1525.9,35.91318163]
[1744319803303,3.42751858,1526.2,1526.1,27.15615799]
[1744319803503,3.42751858,1526.2,1526.1,23.92216799]
[1744319804002,8.42751858,1526.2,1526.1,17.11356323]
[1744319804205,1.31137,1526.0,1525.9,34.27926163]
[1744319804399,4.90418858,1526.0,1525.9,32.40776163]
[1744319804594,9.90418858,1526.0,1525.9,20.53188157]
[1744319804800,11.51778858,1526.0,1525.9,17.66657157]
[1744319805000,11.51778858,1526.0,1525.9,15.00258157]
[1744319805309,11.51778858,1526.0,1525.0,0.8045]
[1744319805310,1.31215,1525.1,1525.0,0.8045]
[1744319805496,1.31215,1525.1,1525.0,5.8045]
[1744319806006,1.31215,1525.1,1525.0,0.8045]
[1744319806602,4.52969841,1525.2,1525.0,2.4959965]
[1744319806801,4.52969841,1525.2,1525.0,3.8081765]
[1744319807004,1.31215,1525.1,1525.0,1.6914965]
[1744319807211,4.52972841,1525.2,1525.0,3.0036765]
[1744319807713,4.52972841,1525.2,1525.1,0.0136965]
[1744319809804,6.11952841,1525.2,1525.1,0.0136965]
[1744319810212,1.28479053,1525.1,1525.0,1.6778]
[1744319810608,1.28479053,1525.1,1525.0,2.99003]
[1744319810810,1.28479053,1525.1,1525.0,1.69146297]
[1744319811213,2.87459053,1525.1,1525.0,1.6778]
[1744319811410,2.87459053,1525.1,1525.0,1.70512594]
[1744319811606,3.21760841,1525.2,1525.0,3.01729594]
[1744319811911,1.31215,1525.1,1525.0,3.01729594]
[1744319812209,4.52970841,1525.2,1525.1,1.31215]
[1744319812414,4.52970841,1525.2,1525.0,1.70512594]
[1744319812415,4.52970841,1525.2,1524.9,7.95579]
[1744319812716,4.52970841,1525.2,1525.1,1.31215]
[1744319813207,3.21760841,1525.2,1525.1,1.31215]
[1744319813916,4.52966841,1525.2,1525.1,1.31215]
[1744319814914,3.21760841,1525.2,1525.1,1.31215]
[1744319815111,3.21760841,1525.2,1524.7,99.891]
[1744319815314,4.52974841,1525.2,1525.1,1.31215]
[1744319815613,1.31217,1525.1,1525.0,1.31218]
[1744319816002,1.31239,1524.9,1524.8,1.31239]
[1744319816407,1.31239,1524.9,1524.7,0.08468868]
[1744319816912,1.31239,1524.9,1524.8,1.3124]
[1744319817216,1.31239,1524.9,1524.8,2.912]
[1744319819119,1.31239,1524.9,1524.8,1.3124]
[1744319819307,2.92929,1524.9,1524.8,1.3124]
[1744319820424,1.3122,1525.1,1525.0,1.31223]
[1744319820623,1.31249,1524.7,1524.6,1.31252]
[1744319821318,3.2078,1524.8,1524.7,1.31249]
[1744319821521,4.943,1525.0,1524.6,3.28142]
[1744319821722,1.31244,1524.8,1524.7,1.31242]
[1744319821916,4.52024,1524.8,1524.7,1.31242]
[1744319822519,1.31249,1524.7,1524.6,3.0131]
[1744319823318,3.04769,1524.7,1524.6,3.0131]
[1744319823817,3.04769,1524.7,1524.6,1.3125]
[1744319824019,1.31275,1524.4,1524.3,6.52288305]
[1744319824211,3.2078,1524.7,1524.4,1.31275]
[1744319824417,4.52013,1524.9,1524.8,1.3124]
[1744319824616,3.59067809,1524.9,1524.8,1.3124]
[1744319824814,3.2078,1524.9,1524.8,1.3124]
[1744319825014,4.52012,1524.9,1524.8,1.6562]
[1744319825217,4.7838,1524.9,1524.8,2.9686]
[1744319825418,5.16668585,1524.9,1524.8,2.9686]
[1744319825717,3.2078,1524.9,1524.8,2.9686]
[1744319826322,3.59109669,1524.9,1524.8,2.9686]
[1744319826823,5.1067285,1525.0,1524.9,1.31232]
[1744319827119,5.4904397,1525.0,1524.9,7.60642]
[1744319827717,6.8026697,1525.0,1524.9,7.60642]
[1744319828115,10.4860597,1525.0,1524.6,11.97754]
[1744319828324,3.2078,1524.8,1524.7,1.31249]
[1744319828516,3.5915112,1524.8,1524.7,1.31249]
[1744319829321,3.5915112,1524.8,1524.7,2.93359]
[1744319830124,0.3837112,1524.8,1524.7,7.93359]
[1744319830623,1.31235,1524.9,1524.8,1.3124]
[1744319830816,0.38641359,1524.9,1524.4,5.5176]
[1744319831016,4.52046,1524.5,1524.4,1.31275]
[1744319831226,3.59421359,1524.5,1524.4,1.31275]
[1744319831424,1.31275,1524.4,1524.3,1.84990305]
[1744319831618,3.43236359,1524.4,1524.3,1.31283]
[1744319831817,3.43236359,1524.4,1524.3,2.90553]
[1744319832124,3.43236359,1524.4,1524.3,3.42813427]
[1744319833027,2.12027818,1524.4,1524.3,3.42813427]
[1744319833323,3.43302818,1524.4,1524.3,3.42813427]
[1744319833525,2.12027818,1524.4,1524.3,3.42813427]
[1744319834328,3.43302818,1524.4,1524.3,0.52260427]
[1744319834528,1.31303,1524.1,1523.9,1.31313]
[1744319834828,0.38707818,1524.0,1523.9,5.98713]
[1744319835029,1.96257818,1524.0,1523.9,5.98713]
[1744319835429,3.27566818,1524.0,1523.9,5.98713]
[1744319835727,1.96257818,1524.0,1523.9,6.52231262]
[1744319837131,0.38707818,1524.0,1523.9,6.52231262]
[1744319838531,6.47853995,1524.0,1523.9,6.52231262]
[1744319838832,6.47853995,1524.0,1523.9,1.84831262]
[1744319839024,8.10783995,1524.0,1523.9,6.52331262]
[1744319839225,6.47853995,1524.0,1523.9,6.52331262]
[1744319839425,2.14263995,1524.0,1523.9,20.72311262]
[1744319839632,5.62565506,1524.1,1524.0,1.31309]
[1744319839834,5.02e-06,1524.1,1524.0,104.01629]
[1744319840025,5.02e-06,1524.1,1524.0,109.01629]
[1744319843030,9e-07,1524.2,1524.1,1.31301]
[1744319843230,9e-07,1524.2,1524.1,6.21621]
[1744319843430,9e-07,1524.2,1524.1,19.66098471]
[1744319843625,11.82971906,1524.7,1524.6,1.31258]
[1744319843829,10.22401906,1524.7,1524.6,5.98758]
[1744319844231,10.22401906,1524.7,1524.6,10.98758]
[1744319846037,8.75722906,1524.7,1524.6,10.98758]
[1744319846739,0.0098409,1524.8,1524.7,1.31249]
[1744319846929,0.0098409,1524.8,1524.7,2.93009]
[1744319847546,9e-07,1524.8,1524.7,2.93009]
[1744319847945,9e-07,1524.8,1524.7,113.96109]
[1744319848235,8.75722906,1525.3,1525.2,1.31206]
[1744319848437,13.27699906,1525.3,1525.1,1.31208]
[1744319848631,13.27699906,1525.3,1525.2,5.98606]
[1744319849132,11.96502906,1525.3,1525.2,5.98606]
[1744319849738,19.90549906,1525.3,1525.2,4.674]
[1744319850329,13.59352906,1525.3,1525.2,1.31206]
[1744319850533,1.31258,1524.6,1524.5,0.0098409]
[1744319851035,5.0,1524.6,1524.5,1.3225009]
[1744319851336,7.5664,1524.6,1524.5,1.3225009]
[1744319851640,7.93953177,1524.6,1524.5,1.3225009]
[1744319852842,2.93952052,1524.6,1524.5,1.3225009]
[1744319853548,2.93949989,1524.6,1524.5,1.3225009]
[1744319854545,2.93949989,1524.6,1524.5,0.0098409]
[1744319854546,4.25207989,1524.6,1524.5,0.0098409]
[1744319854845,1.31283,1524.4,1524.3,4.689]
[1744319855046,4.8937788,1524.4,1524.3,4.689]
[1744319855534,6.5437788,1524.4,1524.3,6.00183]
[1744319855739,5.2309488,1524.4,1524.3,6.00183]
[1744319855944,6.5436988,1524.4,1524.3,6.00183]
[1744319856846,6.54371684,1524.4,1524.3,6.00183]
[1744319857841,5.23096684,1524.4,1524.3,6.00183]
[1744319860647,5.23096684,1524.4,1523.2,1.31375]
[1744319860648,3.2834,1523.7,1523.2,1.31375]
[1744319860842,1.3137,1523.3,1523.1,1.3138]
[1744319861142,2.05940584,1523.2,1522.6,3.2078]
[1744319861340,0.37267605,1523.1,1522.8,5.8568]
[1744319861546,5.26712294,1523.0,1522.8,0.9178]
[1744319861739,4.8945,1523.0,1522.9,6.25304]
[1744319861939,5.26714804,1523.0,1522.9,6.25304]
[1744319862148,5.26709083,1523.0,1522.9,4.939]
[1744319862347,4.8945,1523.0,1522.6,3.2078]
[1744319862651,4.8945,1523.0,1522.9,1.31404]
[1744319862835,5.26654645,1523.0,1522.9,1.31404]
[1744319863040,4.8945,1523.0,1522.9,1.31404]
[1744319863445,3.2078,1523.0,1522.9,1.32769578]
[1744319863648,1.6279,1523.5,1523.4,1.31361]
[1744319863946,1.99968339,1523.5,1523.4,1.31361]
[1744319864346,1.6279,1523.5,1523.4,1.31361]
[1744319864544,1.6279,1523.5,1523.4,1.32726578]
[1744319865255,14.40988064,1523.5,1523.4,3.02156578]
[1744319865844,14.40988064,1523.5,1523.4,8.02156578]
[1744319866454,12.78198064,1523.5,1523.4,6.32726578]
[1744319866750,12.78198064,1523.5,1523.4,8.04666578]
[1744319866949,11.41572064,1523.5,1523.4,8.04666578]
[1744319869551,11.41572064,1523.5,1523.4,6.32726578]
[1744319869753,13.06132064,1523.5,1523.4,6.32726578]
[1744319869949,13.06132064,1523.5,1523.4,7.94056578]
[1744319870545,1.6456,1523.5,1523.4,7.94056578]
[1744319870747,1.6456,1523.5,1523.4,2.94056578]
[1744319871153,1.6456,1523.5,1523.4,2.96274568]
[1744319871349,1.6456,1523.5,1523.4,1.34944568]
[1744319871550,0.0098409,1523.6,1523.5,1.31352]
[1744319871853,0.0098409,1523.6,1523.5,7.86782]
[1744319872649,0.0098409,1523.6,1523.5,7.92839824]
[1744319873248,0.0098409,1523.6,1523.5,7.95314785]
[1744319873450,0.0098409,1523.6,1523.5,6.33984785]
[1744319873850,0.0098409,1523.6,1523.5,7.96779746]
[1744319875557,0.0098409,1523.6,1523.5,7.9925725]
[1744319876655,0.0098409,1523.6,1523.5,8.01734754]
[1744319877061,0.0098409,1523.6,1523.5,1.47314754]
[1744319877358,0.0098409,1523.6,1523.5,5.10062754]
[1744319877860,1.6039409,1523.6,1523.5,5.10062754]
[1744319878257,1.97580633,1523.6,1523.5,6.41414754]
[1744319878459,3.2892373,1523.6,1523.5,6.43898295]
[1744319878655,1.9757973,1523.6,1523.5,6.43898295]
[1744319879361,1.9757973,1523.6,1523.5,6.46367546]
[1744319879761,5.1835973,1523.6,1523.5,6.46367546]
[1744319880362,6.49740961,1523.6,1523.5,5.15015546]
[1744319880565,11.49740961,1523.6,1523.5,0.23384797]
[1744319881260,1.31361,1523.4,1523.3,0.0098409]
[1744319881461,4.89363871,1523.4,1523.3,0.0098409]
[1744319881663,9.89374428,1523.4,1523.3,0.0098409]
[1744319881863,11.56014428,1523.4,1523.3,0.03453171]
[1744319882363,5.24653428,1523.4,1523.3,1.34823171]
[1744319882663,6.56014428,1523.4,1523.3,0.03453171]
[1744319883362,6.56034504,1523.4,1523.3,0.03453171]
[1744319883663,6.56034504,1523.4,1523.3,1.37293224]
[1744319883969,5.24673504,1523.4,1523.3,1.37293224]
[1744319884664,6.56034504,1523.4,1523.3,1.39763277]
[1744319885067,2.03893504,1523.4,1523.3,1.39763277]
[1744319885767,2.03893504,1523.4,1523.3,3.10973277]
[1744319885965,0.37253504,1523.4,1523.3,3.10973277]
[1744319886663,0.37253504,1523.4,1523.3,3.13442332]
[1744319887067,2.5371,1523.5,1523.4,1.31361]
[1744319887368,2.91005717,1523.5,1523.4,7.96771]
[1744319887865,12.43137717,1523.5,1523.4,0.12349117]
[1744319888266,7.43137717,1523.5,1523.4,1.43710117]
[1744319888760,7.43137717,1523.5,1523.4,0.12349117]
[1744319889059,7.43137717,1523.5,1523.4,1.43710117]
[1744319889961,7.43137717,1523.5,1523.4,1.46180992]
[1744319890665,7.43223363,1523.5,1523.4,1.48651867]
[1744319891168,6.11871363,1523.5,1523.4,1.48651867]
[1744319891361,7.43223363,1523.5,1523.4,0.17290867]
[1744319891963,1.31361,1523.4,1523.3,6.2655009]
[1744319892169,3.12920925,1523.4,1523.3,6.2655009]
[1744319892369,3.12940555,1523.4,1523.3,6.2655009]
[1744319893061,3.12940555,1523.4,1523.3,6.29020661]
[1744319894066,3.12940555,1523.4,1523.3,0.03454661]
[1744319894269,3.95770555,1523.4,1523.3,0.03454661]
[1744319894672,8.95770555,1523.4,1523.3,0.03454661]
[1744319894972,8.95770555,1523.4,1523.3,0.05918451]
[1744319895268,3.95770555,1523.4,1523.3,0.05918451]
[1744319895972,3.95780907,1523.4,1523.3,0.05918451]
[1744319896171,2.01351345,1523.4,1523.3,6.33568618]
[1744319896963,8.32712345,1523.4,1523.3,0.08398618]
[1744319897170,3.28425,1523.3,1523.0,1.31395]
[1744319897365,3.2078,1523.1,1523.0,1.31395]
[1744319897571,0.37411345,1523.1,1523.0,6.25195]
[1744319898261,0.37411345,1523.1,1523.0,7.91906868]
[1744319899274,0.37411345,1523.1,1523.0,7.94370284]
[1744319899474,3.03732,1523.2,1523.1,1.31387]
[1744319899675,3.41125235,1523.2,1523.1,1.31387]
[1744319899974,2.09743235,1523.2,1523.1,1.31387]
[1744319900175,2.09743235,1523.2,1523.1,3.036657]
[1744319900670,0.37393235,1523.2,1523.1,3.036657]
[1744319900872,0.37393235,1523.2,1523.1,8.036657]
[1744319901677,0.37393235,1523.2,1523.1,3.036657]
[1744319901875,0.37393235,1523.2,1523.1,8.06135049]